bitfinex/quotes_ETHUSD_20251221
["timestamp","ask_amount","ask_price","bid_price","bid_amount"]
[1766348419091,0.438,2991.3,2990.7,0.001]
[1766348425117,3.78103463,2991.3,2990.7,0.001]
[1766348426021,3.91498121,2991.3,2990.7,0.001]
[1766348428546,3.78103463,2991.3,2990.7,0.001]
[1766348431743,0.438,2991.3,2990.7,1.6678]
[1766348433546,0.44,2991.3,2990.7,1.6678]
[1766348436648,3.78305036,2991.3,2990.7,1.6678]
[1766348436852,3.78305036,2991.3,2990.7,0.001]
[1766348440557,0.44,2991.3,2990.7,0.001]
[1766348441859,0.44,2991.3,2990.7,1.6339]
[1766348442726,3.78304114,2991.3,2990.7,0.001]
[1766348442923,4.16133622,2991.3,2990.7,0.001]
[1766348443662,0.81829508,2991.3,2990.7,0.001]
[1766348443974,0.438,2991.2,2990.7,0.001]
[1766348444276,0.38029508,2991.3,2990.7,0.001]
[1766348444446,0.438,2991.2,2990.7,0.001]
[1766348445861,0.38029508,2991.3,2990.7,0.001]
[1766348446159,0.438,2991.2,2990.7,0.001]
[1766348446459,0.438,2991.2,2990.7,1.6339]
[1766348447154,0.002,2991.3,2990.7,1.6339]
[1766348447375,0.438,2991.2,2990.7,1.6339]
[1766348448567,0.002,2991.3,2990.7,1.6339]
[1766348448776,0.002,2991.3,2990.8,1.6329]
[1766348450376,0.002,2991.3,2990.9,1.2842]
[1766348453491,0.002,2991.3,2990.8,1.6329]
[1766348455470,0.002,2991.3,2990.8,1.84019]
[1766348457792,0.002,2991.3,2990.8,1.6329]
[1766348459286,0.002,2991.3,2990.7,0.001]
[1766348459456,0.002,2991.3,2990.8,1.6329]
[1766348461272,0.002,2991.3,2990.7,0.001]
[1766348462882,0.002,2991.3,2990.7,1.6339]
[1766348464090,0.002,2991.3,2990.8,0.001]
[1766348472674,0.002,2991.3,2990.8,1.6352]
[1766348473605,0.002,2991.3,2990.8,0.001]
[1766348473899,0.71457712,2991.3,2990.8,0.001]
[1766348477302,4.0576259,2991.3,2990.8,0.001]
[1766348479927,4.0576259,2991.3,2990.5,0.001]
[1766348480513,7.40067468,2991.3,2990.5,0.001]
[1766348480905,4.0576259,2991.3,2990.5,0.001]
[1766348481080,1.19838451,2991.2,2990.5,0.001]
[1766348481281,0.438,2991.1,2990.5,0.001]
[1766348482203,0.438,2991.1,2990.5,1.6352]
[1766348482403,0.438,2991.2,2990.5,0.001]
[1766348482603,0.438,2991.2,2990.6,1.6342]
[1766348482808,0.438,2991.2,2990.5,0.001]
[1766348482977,0.438,2991.2,2990.7,1.6342]
[1766348483179,0.002,2991.3,2990.7,1.273]
[1766348483180,0.44,2991.3,2990.7,1.273]
[1766348483377,0.44,2991.3,2990.8,1.6342]
[1766348484281,0.44,2991.3,2990.6,0.3345018]
[1766348484505,0.44,2991.3,2990.7,1.6342]
[1766348484812,0.44,2991.3,2990.6,0.3345018]
[1766348484982,0.44,2991.3,2990.7,1.6342]
[1766348486510,0.002,2991.3,2990.8,0.001]
[1766348488387,0.002,2991.3,2990.9,1.6342]
[1766348489612,0.002,2991.3,2990.8,0.001]
[1766348497588,1.00462293,2991.2,2990.8,0.001]
[1766348499249,0.44,2991.3,2990.8,1.55863587]
[1766348499730,1.44457247,2991.3,2990.8,1.50863587]
[1766348499930,1.44457247,2991.3,2990.8,1.4752]
[1766348500118,1.44457247,2991.3,2990.8,1.50863587]
[1766348500324,1.00657247,2991.3,2990.8,1.4752]
[1766348501005,1.00657247,2991.3,2990.8,1.1731]
[1766348501528,1.00657247,2991.3,2990.8,1.5242]
[1766348504029,1.00657247,2991.3,2990.8,1.4742]
[1766348504532,0.002,2991.3,2990.8,1.4742]
[1766348506000,0.002,2991.3,2990.9,1.55763475]
[1766348506431,0.002,2991.3,2991.0,1.5242]
[1766348508329,9.33546689,2992.0,2990.8,3.86915676]
[1766348508330,1.00450184,2992.0,2990.9,3.34345606]
[1766348508536,0.438,2991.8,2991.0,1.1731]
[1766348508734,0.438,2991.8,2991.2,1.5242]
[1766348508902,0.438,2991.8,2991.2,0.3511]
[1766348509103,0.002,2992.1,2991.0,7.926465]
[1766348509302,0.438,2992.0,2991.1,0.7926465]
[1766348510036,0.438,2992.0,2991.2,1.5242]
[1766348510343,0.438,2992.0,2991.4,1.5242]
[1766348511419,0.55179351,2992.1,2991.4,1.5242]
[1766348511628,0.438,2991.9,2991.4,1.5242]
[1766348513046,0.55179351,2992.1,2991.4,1.5242]
[1766348513210,0.438,2991.9,2991.4,1.5242]
[1766348514841,0.438,2991.9,2991.2,1.5242]
[1766348515136,0.44,2991.9,2991.2,1.5242]
[1766348515341,0.44,2991.9,2991.1,0.7926465]
[1766348515545,0.44,2991.9,2991.2,1.5242]
[1766348515932,0.44,2991.9,2991.1,0.7926465]
[1766348516443,0.44,2991.9,2991.3,1.5242]
[1766348520666,0.002,2991.9,2991.3,1.5242]
[1766348520873,0.44,2991.9,2991.3,1.5242]
[1766348522555,0.44,2991.9,2991.5,1.5242]
[1766348522556,0.002,2991.9,2991.5,1.5242]
[1766348522768,0.002,2991.9,2991.6,1.5242]
[1766348522915,0.002,2991.9,2991.1,1.00431016]
[1766348523111,0.44,2991.9,2990.9,1.9622]
[1766348523345,0.50211284,2991.8,2991.1,0.001]
[1766348526966,4.58112842,2991.7,2990.5,1.5021]
[1766348527255,5.58567735,2991.7,2990.5,1.5021]
[1766348527452,1.00454893,2991.7,2990.6,1.5011]
[1766348527654,0.405504,2991.6,2990.5,0.001]
[1766348527860,4.58112842,2991.4,2990.5,0.001]
[1766348528569,1.00469022,2991.3,2990.5,0.001]
[1766348534532,0.438,2991.5,2990.5,0.001]
[1766348534732,1.00469022,2991.4,2990.5,0.001]
[1766348535239,0.47855176,2991.3,2990.5,0.001]
[1766348539895,3.82158678,2991.3,2990.5,0.001]
[1766348540699,0.47855176,2991.3,2990.5,0.001]
[1766348546400,4.58396982,2991.1,2990.1,0.438]
[1766348546604,0.438,2991.0,2990.1,0.438]
[1766348546769,0.50219698,2990.9,2990.1,0.438]
[1766348547410,0.50219698,2990.9,2990.1,1.918]
[1766348547816,0.50219698,2990.9,2990.5,0.001]
[1766348548519,1.44276425,2991.0,2990.5,0.001]
[1766348550326,0.438,2991.0,2990.5,0.001]
[1766348552189,1.00476425,2990.9,2990.5,0.001]
[1766348554322,0.438,2991.0,2990.5,0.001]
[1766348554622,1.44276425,2991.0,2990.5,0.001]
[1766348556822,0.47860207,2990.9,2990.5,0.001]
[1766348557027,1.44276425,2991.0,2990.5,0.001]
[1766348559227,0.002,2991.3,2990.9,1.5246]
[1766348559699,0.002,2991.3,2990.5,0.001]
[1766348559901,0.002,2991.3,2990.8,1.00461621]
[1766348560305,0.002,2991.3,2990.8,2.52921621]
[1766348576340,0.002,2991.3,2990.8,1.77752162]
[1766348576541,0.002,2991.3,2990.8,2.78207055]
[1766348580158,3.34269381,2991.6,2990.8,2.78207055]
[1766348580331,0.002,2991.8,2991.3,1.1839]
[1766348580531,0.002,2991.8,2990.9,4.61637385]
[1766348580532,0.002,2991.8,2991.5,1.5246]
[1766348580838,0.002,2991.8,2990.9,4.5829391]
[1766348581037,0.44,2991.8,2991.3,1.1839]
[1766348581255,0.44,2991.8,2991.5,0.13391384]
[1766348582326,0.44,2991.8,2991.5,1.65851384]
[1766348583230,0.44,2991.8,2991.6,1.5246]
[1766348584355,0.44,2991.8,2991.5,0.13391384]
[1766348586060,0.44,2991.8,2991.1,3.34322191]
[1766348586061,5.02071676,2991.8,2991.1,1.5005]
[1766348586262,5.02071676,2991.8,2991.3,0.44]
[1766348586458,0.44,2991.8,2991.3,0.44]
[1766348596381,0.44,2991.8,2991.3,1.9405]
[1766348597387,0.44,2991.8,2991.3,1.9415]
[1766348608197,0.002,2991.9,2991.3,1.9415]
[1766348608488,4.58271676,2992.0,2991.5,0.3603]
[1766348608489,0.438,2992.0,2991.5,0.3603]
[1766348608658,0.438,2992.0,2991.7,1.421]
[1766348610862,0.438,2992.0,2991.7,1.859]
[1766348611206,0.438,2992.0,2991.7,1.421]
[1766348612292,0.44,2992.0,2991.7,1.421]
[1766348615001,0.44,2992.0,2991.7,1.0607]
[1766348615203,0.44,2992.0,2991.8,1.4456]
[1766348615409,0.002,2992.0,2991.8,1.4456]
[1766348626709,0.002,2992.0,2991.6,1.8836]
[1766348627490,0.002,2992.0,2991.7,1.0749]
[1766348627692,0.002,2992.0,2991.7,1.4456]
[1766348628921,0.002,2992.1,2991.7,1.4456]
[1766348629217,3.34368803,2992.5,2991.7,1.4456]
[1766348629218,0.002,2992.5,2991.7,4.58010673]
[1766348629407,0.002,2992.5,2992.1,0.3707]
[1766348629608,0.002,2992.5,2992.1,1.4456]
[1766348629913,0.44,2992.5,2992.1,1.4456]
[1766348630494,0.44,2992.5,2991.9,2.44977233]
[1766348631123,0.44,2992.5,2992.0,1.4456]
[1766348631320,0.44,2992.5,2991.9,1.00417233]
[1766348631788,0.002,2992.5,2991.9,1.00417233]
[1766348632094,0.438,2992.4,2991.9,1.00417233]
[1766348634126,0.438,2992.4,2991.5,1.4466]
[1766348634424,0.50201067,2992.3,2991.5,1.4466]
[1766348635994,0.50201067,2992.3,2991.5,0.001]
[1766348636194,0.50201067,2992.3,2991.6,1.4456]
[1766348638224,0.002,2992.5,2992.0,0.3707]
[1766348638428,0.438,2992.4,2991.8,1.4456]
[1766348638732,0.438,2992.3,2991.7,4.58010673]
[1766348638906,0.438,2992.3,2991.9,0.3707]
[1766348639102,0.438,2992.3,2992.0,1.4456]
[1766348646446,0.438,2992.3,2991.7,1.137]
[1766348646616,0.438,2992.3,2991.6,1.00421939]
[1766348646816,0.438,2992.3,2991.5,0.001]
[1766348647019,0.438,2992.3,2992.0,0.001]
[1766348653543,0.002,2992.5,2992.0,0.001]
[1766348653757,0.438,2992.2,2992.0,0.001]
[1766348654748,0.002,2992.3,2992.0,0.001]
[1766348655046,0.002,2992.3,2992.0,1.4924]
[1766348655351,0.438,2992.2,2992.0,1.4924]
[1766348658049,0.002,2992.3,2992.0,1.4924]
[1766348658252,0.438,2992.2,2992.0,1.4924]
[1766348660627,0.438,2992.2,2992.0,0.001]
[1766348669568,0.438,2992.2,2991.5,0.439]
[1766348669757,0.438,2992.2,2991.5,0.001]
[1766348670867,0.438,2992.2,2991.5,1.4812]
[1766348672736,0.44,2992.2,2991.5,0.001]
[1766348673066,3.7820328,2992.2,2991.3,0.001]
[1766348673272,0.81304174,2992.1,2991.3,0.001]
[1766348677973,0.438,2992.0,2991.3,0.001]
[1766348686875,0.438,2991.9,2991.6,1.4163]
[1766348688274,0.438,2991.9,2991.3,1.4173]
[1766348689180,0.438,2991.9,2991.3,0.001]
[1766348690186,0.438,2991.9,2991.3,1.4173]
[1766348701321,0.438,2991.9,2991.3,0.001]
[1766348701906,0.438,2991.9,2991.3,1.4173]
[1766348706209,0.44,2991.9,2991.3,1.4173]
[1766348710817,0.438,2991.8,2991.3,1.4173]
[1766348720520,0.438,2991.7,2991.4,1.4617]
[1766348727894,0.438,2991.7,2991.3,0.001]
[1766348729824,0.438,2991.7,2990.8,1.4443]
[1766348731527,0.438,2991.7,2991.3,0.001]
[1766348733022,1.00451193,2991.6,2991.3,0.001]
[1766348738520,0.438,2991.5,2991.3,0.001]
[1766348739629,1.44251193,2991.5,2991.3,0.001]
[1766348740031,0.438,2991.5,2991.3,0.001]
[1766348742132,1.00451193,2991.6,2991.3,0.001]
[1766348742427,0.438,2991.5,2991.3,0.001]
[1766348758151,0.44,2991.6,2991.3,0.001]
[1766348758358,0.438,2991.4,2991.3,0.001]
[1766348760570,0.44,2991.6,2991.3,0.001]
[1766348760870,0.438,2991.4,2991.3,0.001]
[1766348764356,0.44,2991.6,2991.3,0.001]
[1766348764548,0.438,2991.5,2991.3,0.001]
[1766348765760,0.44,2991.5,2991.3,0.001]
[1766348765960,0.002,2991.5,2991.3,0.001]
[1766348766149,0.44,2991.6,2991.4,1.3998]
[1766348766697,0.002,2991.9,2991.3,0.001]
[1766348766698,0.002,2991.9,2991.7,0.3503]
[1766348766846,0.002,2992.3,2992.0,0.3503]
[1766348767052,0.002,2992.3,2991.8,0.03342469]
[1766348767053,0.002,2992.3,2992.1,1.3998]
[1766348767682,0.002,2992.3,2992.1,1.8438]
[1766348768347,0.002,2992.3,2992.1,1.3998]
[1766348768544,0.002,2992.3,2992.2,0.438]
[1766348771294,0.002,2992.3,2992.1,1.3998]
[1766348771469,0.002,2992.3,2992.1,1.8378]
[1766348772398,0.002,2992.3,2992.1,1.3998]
[1766348772557,0.002,2992.3,2992.1,1.8398]
[1766348774491,0.002,2992.3,2992.1,2.02378]
[1766348776188,0.002,2992.3,2992.1,1.58378]
[1766348776401,0.002,2992.3,2992.1,2.02378]
[1766348777289,0.002,2992.3,2992.1,0.18398]
[1766348777601,0.002,2992.3,2991.9,1.3998]
[1766348779177,0.002,2992.3,2992.0,1.3998]
[1766348782889,0.44,2992.6,2991.8,0.44]
[1766348783198,0.002,2992.7,2992.5,1.3998]
[1766348783364,0.002,2992.7,2992.0,5.0193505]
[1766348783568,0.002,2992.7,2992.3,1.3998]
[1766348786768,0.002,2992.7,2992.2,0.438]
[1766348786982,0.002,2992.7,2992.3,1.4081]
[1766348787189,0.002,2992.7,2992.2,0.438]
[1766348787190,0.002,2992.7,2992.4,1.4081]
[1766348792311,0.002,2992.7,2992.2,1.8461]
[1766348792497,0.002,2992.7,2992.2,1.67632669]
[1766348794208,0.002,2992.7,2992.3,1.4081]
[1766348795308,0.002,2992.7,2992.2,0.26822669]
[1766348798812,0.002,2992.7,2992.0,0.001]
[1766348803025,0.002,2992.7,2992.0,1.3838]
[1766348806234,0.002,2992.7,2992.0,0.001]
[1766348808727,0.002,2992.7,2992.0,1.3838]
[1766348813141,0.002,2992.7,2992.1,1.3828]
[1766348818126,0.438,2992.6,2992.1,1.3828]
[1766348819351,0.438,2992.6,2992.0,0.001]
[1766348819849,0.438,2992.6,2992.0,1.3838]
[1766348820215,0.002,2992.7,2992.0,4.58040274]
[1766348820414,0.002,2992.8,2992.5,0.3586]
[1766348820647,0.002,2992.8,2992.6,1.3828]
[1766348821011,0.002,2992.8,2992.1,0.45804027]
[1766348821214,0.002,2992.8,2992.3,0.3586]
[1766348821416,0.002,2992.8,2992.6,1.3828]
[1766348821853,0.002,2993.2,2992.7,0.03341464]
[1766348822159,0.17460564,2993.6,2993.5,1.3828]
[1766348822316,0.17460564,2993.6,2992.8,3.80261881]
[1766348822519,0.17460564,2993.6,2992.9,1.0242]
[1766348822737,0.17460564,2993.6,2993.2,0.3586]
[1766348822930,0.12460564,2993.6,2993.3,1.3828]
[1766348823130,0.002,2993.9,2993.3,1.3828]
[1766348823850,0.002,2993.9,2992.8,3.80261881]
[1766348823851,0.002,2993.9,2992.8,0.46128174]
[1766348824045,0.002,2993.9,2993.2,0.3586]
[1766348824353,0.002,2993.9,2993.5,1.3828]
[1766348825836,0.002,2993.9,2993.2,1.3232]
[1766348826141,0.002,2993.9,2993.3,0.3671]
[1766348826320,0.002,2993.9,2993.5,0.3671]
[1766348826656,0.002,2993.9,2993.4,0.9561]
[1766348826824,0.002,2993.9,2993.6,1.3232]
[1766348831258,4.74992606,2993.9,2993.1,0.438]
[1766348831465,4.74992606,2993.9,2993.0,1.3232]
[1766348831466,4.57666334,2993.9,2993.0,1.3232]
[1766348833736,0.437,2993.8,2993.0,1.3232]
[1766348834446,0.437,2993.8,2993.0,1.3242]
[1766348834647,0.95566801,2993.8,2993.0,1.3242]
[1766348839575,0.95566801,2993.8,2993.1,1.3232]
[1766348841953,0.437,2993.8,2993.1,1.3232]
[1766348842173,0.437,2993.8,2993.0,0.001]
[1766348842974,0.437,2993.8,2993.2,0.3671]
[1766348843146,0.437,2993.8,2993.2,1.3232]
[1766348844645,0.002,2993.9,2993.1,1.3232]
[1766348844848,0.437,2993.8,2993.2,0.3671]
[1766348845367,0.437,2993.8,2993.2,1.3232]
[1766348845538,0.002,2993.9,2993.1,0.9561]
[1766348845743,0.437,2993.8,2993.4,0.3671]
[1766348845939,0.437,2993.8,2993.4,1.3232]
[1766348846543,0.437,2993.8,2993.0,0.001]
[1766348846744,0.437,2993.8,2993.0,1.2824]
[1766348846944,0.50136633,2993.7,2993.0,1.2824]
[1766348852284,0.50136633,2993.7,2993.0,0.001]
[1766348854785,4.98016734,2993.6,2992.2,1.0038632]
[1766348854966,4.57466334,2993.3,2992.3,1.2814]
[1766348855281,0.437,2993.2,2992.3,1.2814]
[1766348855868,0.437,2993.2,2993.0,0.001]
[1766348856376,0.437,2993.2,2992.3,1.2814]
[1766348858089,0.437,2993.2,2992.1,0.438]
[1766348858255,0.437,2993.2,2992.3,0.3594]
[1766348858457,0.437,2993.2,2992.4,1.3857]
[1766348860602,5.01574085,2993.2,2992.4,1.3857]
[1766348862708,5.01774085,2993.2,2992.4,1.3857]
[1766348863772,5.01774085,2993.2,2992.3,0.001]
[1766348863994,0.83585497,2993.1,2992.3,0.001]
[1766348864179,4.57874085,2993.0,2992.3,0.001]
[1766348877201,0.438,2992.9,2992.3,0.001]
[1766348884784,0.438,2992.9,2992.3,1.3867]
[1766348892019,0.002,2993.0,2992.3,1.3867]
[1766348892316,0.438,2992.9,2992.4,1.2838]
[1766348895814,0.438,2992.9,2992.3,0.001]
[1766348897528,0.81610272,2992.9,2992.3,0.001]
[1766348899393,0.438,2992.9,2992.3,0.001]
[1766348908333,0.438,2992.9,2992.2,1.1129842]
[1766348909758,0.438,2992.9,2992.3,0.001]
[1766348912549,0.438,2992.9,2992.3,1.3355]
[1766348915744,0.438,2992.9,2992.3,0.001]
[1766348921321,0.438,2992.9,2992.3,1.2683]
[1766348921723,0.438,2992.9,2992.3,0.001]
[1766348924334,0.81610312,2992.9,2992.3,0.001]
[1766348925762,0.81810312,2992.9,2992.3,0.001]
[1766348928829,0.44,2992.9,2992.3,0.001]
[1766348929030,0.44,2992.9,2992.3,1.2683]
[1766348930857,0.44,2992.9,2992.4,1.2673]
[1766348931061,0.44,2992.9,2992.5,0.3505]
[1766348931571,0.44,2992.9,2992.4,0.9168]
[1766348933863,0.002,2992.9,2992.4,0.9168]
[1766348934161,0.44,2992.9,2992.4,0.9168]
[1766348943346,0.44,2992.9,2992.4,1.2673]
[1766348944970,0.44,2992.9,2992.3,0.001]
[1766348945169,0.44,2992.9,2992.3,0.3693]
[1766348945478,0.44,2992.9,2992.3,1.3416]
[1766348953846,0.85523488,2992.9,2992.3,1.3416]
[1766348956088,0.44,2992.9,2992.3,1.3416]
[1766348956295,0.002,2992.9,2992.3,1.3416]
[1766348956600,0.44,2992.9,2992.3,1.3416]
[1766348970600,4.57820659,2992.8,2992.3,0.001]
[1766348971098,3.78124605,2992.9,2992.3,0.001]
[1766348971264,0.39171326,2992.8,2992.3,0.001]
[1766348972196,0.44,2992.9,2992.3,0.001]
[1766348976681,1.4441488,2992.9,2992.3,0.001]
[1766348984197,1.4441488,2992.9,2992.3,1.3684]
[1766348984587,1.4441488,2992.9,2992.3,0.001]
[1766348985907,1.0061488,2992.9,2992.3,0.001]
[1766348986106,0.438,2992.8,2992.3,0.001]
[1766348986483,0.91673084,2992.8,2992.3,0.001]
[1766348987612,0.438,2992.8,2992.3,0.001]
[1766348994031,0.876,2992.8,2992.3,0.001]
[1766349000528,0.438,2992.8,2992.3,0.001]
[1766349000827,0.878,2992.8,2992.3,1.3684]
[1766349001225,0.44,2992.8,2992.3,1.3684]
[1766349001433,0.002,2993.0,2992.6,4.57904712]
[1766349001605,0.002,2993.8,2993.3,0.9944]
[1766349001606,0.44,2993.7,2993.3,0.9944]
[1766349001810,0.44,2993.7,2993.3,1.3674]
[1766349002038,0.44,2993.8,2992.9,7.92021656]
[1766349002235,0.44,2993.8,2993.3,0.373]
[1766349002411,0.002,2993.8,2993.4,1.3674]
[1766349003144,0.002,2993.8,2993.1,0.442]
[1766349003300,0.79231905,2993.7,2993.0,1.3674]
[1766349007840,0.79431905,2993.7,2993.0,1.3674]
[1766349008250,0.002,2993.7,2993.0,1.3674]
[1766349016748,0.002,2993.7,2993.0,1.3684]
[1766349026854,0.002,2993.7,2993.0,0.001]
[1766349034073,1.00394046,2993.6,2993.0,0.001]
[1766349035378,4.34442304,2993.6,2993.0,0.001]
[1766349035578,0.4346423,2993.5,2993.0,0.001]
[1766349037378,7.91720133,2993.3,2992.3,1.3659]
[1766349037580,4.57639376,2993.3,2992.3,1.3659]
[1766349037879,7.91722738,2993.3,2992.3,1.3659]
[1766349038085,4.57639376,2993.0,2992.3,0.001]
[1766349038268,4.57639376,2992.7,2992.1,0.001]
[1766349038653,1.00416897,2992.6,2992.1,0.001]
[1766349039755,1.00416897,2992.6,2992.1,1.3659]
[1766349062902,1.00416897,2992.6,2992.2,1.3649]
[1766349063106,1.00616897,2992.6,2992.2,1.3649]
[1766349063480,0.002,2992.6,2992.2,1.3649]
[1766349063687,1.00416897,2992.5,2992.2,1.3649]
[1766349067603,1.00416897,2992.5,2992.1,0.001]
[1766349070300,1.00416897,2992.5,2992.1,1.2516]
[1766349072109,1.00416897,2992.5,2992.2,1.2506]
[1766349076814,0.002,2992.6,2992.2,1.2506]
[1766349077117,1.00616897,2992.6,2992.2,1.2506]
[1766349077627,0.002,2992.6,2992.2,1.2506]
[1766349077809,1.00416897,2992.5,2992.2,1.2506]
[1766349078725,0.002,2992.6,2992.2,1.2506]
[1766349079017,1.00616897,2992.6,2992.2,1.2506]
[1766349079722,0.002,2992.5,2992.2,1.2506]
[1766349082714,1.00616897,2992.5,2992.2,1.2506]
[1766349086913,0.002,2992.5,2992.2,1.2506]
[1766349088688,3.34239129,2993.7,2992.4,4.57979575]
[1766349088926,1.00394046,2993.6,2992.9,0.365]
[1766349089135,1.00394046,2993.6,2993.1,0.365]
[1766349089136,5.58373621,2993.6,2993.1,0.365]
[1766349089348,4.57979575,2993.6,2993.0,0.958]
[1766349090351,4.57979575,2993.4,2992.8,0.958]
[1766349090705,0.44,2993.7,2992.7,1.00394046]
[1766349090706,4.57979575,2993.6,2992.7,1.00394046]
[1766349090936,0.002,2993.7,2993.0,1.323]
[1766349091098,0.002,2993.7,2993.5,1.323]
[1766349094319,0.002,2993.7,2993.3,1.45683364]
[1766349094511,0.002,2993.7,2993.4,1.323]
[1766349099848,0.002,2993.7,2993.0,0.438]
[1766349100048,0.002,2993.7,2993.1,1.2919]
[1766349100248,0.002,2993.7,2993.3,1.2919]
[1766349102194,0.002,2993.7,2993.2,0.17299]
[1766349102356,4.57746802,2993.7,2993.2,0.3543]
[1766349103380,4.57746802,2993.7,2993.2,1.2919]
[1766349104071,0.002,2993.7,2993.2,1.2919]
[1766349107493,0.5039468,2993.7,2992.8,3.34133351]
[1766349107695,4.57746802,2993.7,2992.7,4.65789132]
[1766349107888,4.57746802,2993.7,2992.7,4.30359132]
[1766349108285,4.57746802,2993.7,2992.9,0.3543]
[1766349108487,4.57746802,2993.7,2992.7,4.30359132]
[1766349108702,4.57746802,2993.7,2993.1,0.001]
[1766349108881,5.07941482,2993.7,2993.1,0.001]
[1766349111297,4.57546802,2993.5,2993.1,0.001]
[1766349130135,0.438,2993.6,2993.1,0.001]
[1766349130639,0.438,2993.6,2993.1,1.3308]
[1766349136751,0.44,2993.6,2993.1,1.3308]
[1766349140452,0.44,2993.6,2993.1,0.001]
[1766349140675,0.44,2993.6,2993.2,1.3298]
[1766349143361,0.99231609,2993.6,2993.1,0.001]
[1766349145433,0.99231609,2993.6,2993.1,1.3308]
[1766349149164,0.002,2993.6,2993.1,0.001]
[1766349149366,0.002,2993.6,2993.2,1.3407]
[1766349149952,0.002,2993.8,2993.6,0.3493]
[1766349150141,0.002,2993.8,2993.7,1.3407]
[1766349150764,0.002,2993.9,2993.2,0.438]
[1766349150980,0.002,2994.0,2993.3,0.37800031]
[1766349151387,0.002,2994.0,2993.7,1.3407]
[1766349152469,0.002,2994.0,2993.4,1.3407]
[1766349152666,0.002,2994.0,2993.2,0.438]
[1766349152871,0.002,2994.0,2993.4,0.3493]
[1766349153066,0.002,2994.0,2993.2,0.438]
[1766349153067,0.002,2994.0,2993.5,0.9914]
[1766349153267,0.002,2994.0,2993.5,1.3407]
[1766349158585,0.002,2994.0,2993.2,0.438]
[1766349158743,0.002,2994.0,2993.5,0.9456]
[1766349158942,0.002,2994.0,2993.6,1.3094]
[1766349170451,0.002,2994.0,2993.5,0.001]
[1766349170982,0.002,2994.0,2993.5,1.3104]
[1766349171680,0.002,2994.0,2993.5,0.001]
[1766349171883,0.002,2994.0,2993.6,1.3094]
[1766349175358,0.002,2994.0,2993.5,0.001]
[1766349175559,0.002,2994.0,2993.6,0.9456]
[1766349175890,0.002,2994.0,2993.7,1.3094]
[1766349177856,0.002,2994.0,2993.5,0.001]
[1766349178057,0.002,2994.4,2993.7,0.9456]
[1766349178255,0.002,2994.7,2993.8,0.17474]
[1766349178455,0.002,2994.7,2994.0,0.3638]
[1766349178656,3.34125198,2994.7,2994.0,1.3094]
[1766349180389,0.002,2994.4,2993.7,1.3094]
[1766349180558,0.93823463,2994.4,2993.6,0.438]
[1766349180759,0.93823463,2994.4,2993.5,0.001]
[1766349180760,4.57484231,2994.0,2993.5,0.001]
[1766349181064,4.57484231,2994.2,2993.5,0.001]
[1766349181870,4.57484231,2994.2,2993.6,1.3094]
[1766349182081,4.57484231,2994.2,2993.5,0.001]
[1766349182285,0.45748423,2994.1,2993.5,0.001]
[1766349187394,0.45748423,2994.1,2993.5,1.3181]
[1766349187887,0.45948423,2994.1,2993.5,1.3181]
[1766349190121,0.45948423,2994.1,2993.5,0.001]
[1766349190282,0.002,2994.1,2993.6,1.3171]
[1766349190779,0.31862995,2994.3,2993.6,1.3171]
[1766349192101,4.57538167,2994.2,2993.6,1.3171]
[1766349194415,5.01338167,2994.2,2993.6,1.3171]
[1766349198523,0.438,2994.2,2993.5,0.001]
[1766349198842,0.438,2994.2,2993.7,1.3171]
[1766349199008,1.35518603,2994.2,2993.7,1.3171]
[1766349200144,1.35518603,2994.2,2993.6,0.977]
[1766349200315,0.91718603,2994.2,2993.7,1.3171]
[1766349200519,0.438,2994.2,2993.7,1.3171]
[1766349201323,0.438,2994.2,2993.5,0.001]
[1766349201721,0.438,2994.2,2993.6,0.977]
[1766349201922,0.438,2994.2,2993.7,1.3171]
[1766349202243,0.93823463,2994.4,2993.5,0.001]
[1766349202535,4.27784848,2994.4,2993.7,0.3401]
[1766349202741,0.98569792,2994.3,2993.7,1.3171]
[1766349209246,0.98769792,2994.3,2993.7,1.3171]
[1766349213849,1.42569792,2994.3,2993.6,0.001]
[1766349214051,1.42569792,2994.3,2993.7,1.2569]
[1766349214250,0.002,2994.3,2993.8,0.3405]
[1766349214443,0.002,2994.3,2993.6,0.47240459]
[1766349214444,0.002,2994.3,2994.1,1.2569]
[1766349215836,0.002,2994.3,2993.9,0.9358]
[1766349216034,0.002,2994.3,2994.2,0.3707]
[1766349216256,0.002,2994.3,2994.2,1.3065]
[1766349216643,0.002,2994.4,2994.2,1.3065]
[1766349216844,0.002,2994.7,2994.3,0.9358]
[1766349217038,0.002,2994.7,2994.0,3.77800936]
[1766349217240,0.002,2994.7,2994.2,0.9358]
[1766349217440,0.002,2994.8,2994.6,0.9358]